fUSD/lending_fUSD_20241209
["ID","MTS","AMOUNT","RATE_DAILY","PERIOD"]
[344726314,1733745059161,-369.52376417,0.00019803,4]
[344726315,1733745059171,-170.34598617,0.00019803,4]
[344726316,1733745059181,-236.39968009,0.00019803,4]
[344726317,1733745059190,-172.0,0.00019805,2]
[344726318,1733745059200,-172.0,0.00019805,2]
[344726319,1733745059210,-172.0,0.00019805,2]
[344726320,1733745059219,-172.0,0.00019805,2]
[344726321,1733745059229,-172.0,0.00019805,2]
[344726322,1733745059239,-172.0,0.00019805,2]
[344726323,1733745059249,-172.0,0.00019805,2]
[344726324,1733745059258,-172.0,0.00019805,2]
[344726325,1733745059268,-172.0,0.00019805,2]
[344726326,1733745059278,-172.0,0.00019805,2]
[344726327,1733745059288,-172.0,0.00019805,2]
[344726328,1733745059300,-172.0,0.00019805,2]
[344726329,1733745059310,-172.0,0.00019805,2]
[344726330,1733745059320,-172.0,0.00019805,2]
[344726331,1733745059329,-153.0,0.00019807,2]
[344726332,1733745059339,-153.0,0.00019807,2]
[344726333,1733745059349,-153.0,0.00019807,2]
[344726334,1733745059359,-153.0,0.00019807,2]
[344726335,1733745059369,-153.0,0.00019807,2]
[344726336,1733745059380,-153.0,0.00019807,2]
[344726337,1733745059389,-153.0,0.00019807,2]
[344726338,1733745059400,-153.0,0.00019807,2]
[344726339,1733745059410,-153.0,0.00019807,2]
[344726340,1733745059420,-153.0,0.00019807,2]
[344726341,1733745059430,-153.0,0.00019807,2]
[344726342,1733745059440,-153.0,0.00019807,2]
[344726343,1733745059450,-153.0,0.00019807,2]
[344726344,1733745059459,-150.0,0.00019812,4]
[344726345,1733745059469,-172.0,0.00019813,2]
[344726346,1733745059479,-172.0,0.00019813,2]
[344726347,1733745059489,-172.0,0.00019813,2]
[344726348,1733745059498,-172.0,0.00019813,2]
[344726349,1733745059508,-172.0,0.00019813,2]
[344726350,1733745059518,-172.0,0.00019813,2]
[344726351,1733745059528,-172.0,0.00019813,2]
[344726352,1733745059722,-172.0,0.00019813,2]
[344726353,1733745059731,-172.0,0.00019813,2]
[344726354,1733745059741,-172.0,0.00019813,2]
[344726355,1733745059750,-172.0,0.00019813,2]
[344726356,1733745059759,-172.0,0.00019813,2]
[344726357,1733745059768,-172.0,0.00019813,2]
[344726358,1733745059777,-172.0,0.00019813,2]
[344726359,1733745059787,-153.0,0.00019815,2]
[344726360,1733745059797,-153.0,0.00019815,2]
[344726361,1733745059807,-153.0,0.00019815,2]
[344726362,1733745059816,-153.0,0.00019815,2]
[344726363,1733745059826,-153.0,0.00019815,2]
[344726364,1733745059838,-153.0,0.00019815,2]
[344726365,1733745059849,-153.0,0.00019815,2]
[344726366,1733745059858,-153.0,0.00019815,2]
[344726367,1733745059868,-153.0,0.00019815,2]
[344726368,1733745059878,-153.0,0.00019815,2]
[344726369,1733745059887,-153.0,0.00019815,2]
[344726370,1733745059896,-153.0,0.00019815,2]
[344726371,1733745059906,-153.0,0.00019815,2]
[344726372,1733745059916,-677.24018547,0.00019825,2]
[344726373,1733745059927,-200.0,0.00019825,2]
[344726374,1733745059936,-200.0,0.00019825,2]
[344726375,1733745059945,-200.0,0.00019825,2]
[344726376,1733745059955,-150.0,0.00019833,4]
[344726377,1733745059965,-2000.0,0.00019838,2]
[344726378,1733745059974,-3500.0,0.00019838,2]
[344726379,1733745059984,-500.0,0.00019838,2]
[344726380,1733745059995,-369.52376417,0.00019853,4]
[344726381,1733745060005,-170.34598617,0.00019853,4]
[344726382,1733745060014,-236.39968009,0.00019853,4]
[344726383,1733745060024,-150.0,0.00019862,2]
[344726384,1733745060034,-150.0,0.0001987,4]
[344726385,1733745060044,-1001.33300944,0.000199,5]
[344726386,1733745060057,-369.52376417,0.00019904,4]
[344726387,1733745060067,-170.34598617,0.00019904,4]
[344726388,1733745060077,-236.39968009,0.00019904,4]
[344726389,1733745060087,-369.52376417,0.00019954,4]
[344726390,1733745060097,-170.34598617,0.00019954,4]
[344726391,1733745060107,-236.39968009,0.00019954,4]
[344726392,1733745060117,-150.0,0.00019963,4]
[344726393,1733745060126,-3576.1730986,0.00019986,2]
[344726394,1733745060135,-94737.3477675,0.00019999,2]
[344726395,1733745060144,-150.0,0.00019999,2]
[344726396,1733745060154,-150.0,0.0002,4]
[344726397,1733745060164,-810.6686874,0.0002,2]
[344726398,1733745060174,-105291.0,0.0002,3]
[344726399,1733745060183,-1500.0,0.0002,7]
[344726400,1733745060193,-33056.72747031,0.0002,5]
[344726401,1733745060204,-2568.5281003,0.0002,5]
[344726402,1733745060214,-150.0,0.0002,10]
[344726403,1733745060224,-7470.25105371,0.0002,5]
[344726404,1733745060234,-421.73106653,0.0002,5]
[344726405,1733745060244,-58000.0,0.0002,6]
[344726406,1733745060254,-34215.82,0.0002,6]
[344726407,1733745060264,-617.64373605,0.0002,2]
[344726408,1733745060274,-200.0,0.0002,2]
[344726409,1733745060284,-20000.0,0.0002,2]
[344726410,1733745060293,-200.0,0.0002,5]
[344726411,1733745060309,-378.0,0.0002,2]
[344726412,1733745060319,-2313.0,0.0002,2]
[344726413,1733745060328,-6500.0,0.0002,2]
[344726414,1733745060338,-297.00802875,0.0002,2]
[344726415,1733745060348,-3815.95995142,0.0002,2]
[344726416,1733745060358,-3950.0,0.0002,2]
[344726417,1733745060368,-1234.54510343,0.0002,2]
[344726418,1733745060378,-2048.95319359,0.0002,2]
[344726419,1733745060387,-14651.22383797,0.0002,7]
[344726420,1733745060397,-50302.66576093,0.0002,2]
[344726421,1733745060408,-5808.87,0.0002,2]
[344726422,1733745060418,-32224.0,0.0002,4]
[344726423,1733745060428,-2110.0,0.0002,2]
[344726424,1733745060438,-12500.69823766,0.0002,14]
[344726425,1733745060448,-12040.8547557,0.0002,2]
[344726426,1733745060458,-239.0,0.0002,2]
[344726427,1733745060468,-400.0,0.0002,2]
[344726428,1733745060478,-2530.0,0.0002,2]
[344726429,1733745060487,-2916.0309815,0.0002,7]
[344726430,1733745060497,-70388.43094012,0.0002,2]
[344726431,1733745060506,-828.70546411,0.0002,2]
[344726432,1733745060515,-159.348443,0.0002,2]
[344726433,1733745060524,-1997.9435419,0.0002,2]
[344726434,1733745060533,-400.90915136,0.0002,2]
[344726435,1733745060544,-240.54549082,0.0002,2]
[344726436,1733745060555,-160.36366054,0.0002,2]
[344726437,1733745060565,-3999.99999999,0.0002,2]
[344726438,1733745060576,-288.573388,0.0002,2]
[344726439,1733745060586,-288.573388,0.0002,2]
[344726440,1733745060596,-151.0,0.0002,2]
[344726441,1733745060606,-188.348167,0.0002,2]
[344726442,1733745060616,-2000.0,0.0002,2]
[344726443,1733745060625,-151.0,0.0002,2]
[344726444,1733745060635,-219.405489,0.0002,2]
[344726445,1733745060645,-219.405489,0.0002,2]
[344726446,1733745060655,-214.497585,0.0002,2]
[344726447,1733745060664,-288.362821,0.0002,2]
[344726448,1733745060674,-288.362821,0.0002,2]
[344726449,1733745060684,-160.931551,0.0002,2]
[344726450,1733745060694,-160.931551,0.0002,2]
[344726451,1733745060704,-151.0,0.0002,2]
[344726452,1733745060713,-485.648918,0.0002,2]
[344726453,1733745060723,-485.648918,0.0002,2]
[344726454,1733745060733,-500.443814,0.0002,2]
[344726455,1733745060743,-158.0,0.0002,2]
[344726456,1733745060753,-158.0,0.0002,2]
[344726457,1733745060763,-158.0,0.0002,2]
[344726458,1733745060772,-1000.0,0.0002,2]
[344726459,1733745060782,-369.52376417,0.00020005,4]
[344726460,1733745060791,-170.34598617,0.00020005,4]
[344726461,1733745060803,-236.39968009,0.00020005,4]
[344726462,1733745060812,-152.0,0.00020013,12]
[344726463,1733745060822,-200.0,0.00020023,2]
[344726464,1733745060831,-200.0,0.00020023,2]
[344726465,1733745060845,-200.0,0.00020023,2]
[344726466,1733745060855,-369.52376417,0.00020055,4]
[344726467,1733745060864,-170.34598617,0.00020055,4]
[344726468,1733745060875,-236.39968009,0.00020055,4]
[344726469,1733745060885,-150.0,0.00020055,4]
[344726470,1733745060895,-406.01,0.00020091,2]
[344726471,1733745060904,-171.0,0.00020105,30]
[344726472,1733745060914,-369.52376417,0.00020106,4]
[344726473,1733745060924,-170.34598617,0.00020106,4]
[344726474,1733745060934,-236.39968009,0.00020106,4]
[344726475,1733745060944,-150.0,0.00020125,4]
[344726476,1733745060953,-150.0,0.00020125,4]
[344726477,1733745060963,-150.0,0.00020136,2]
[344726478,1733745060973,-150.0,0.00020148,4]
[344726479,1733745060983,-369.52376417,0.00020156,4]
[344726480,1733745060992,-170.34598617,0.00020156,4]
[344726481,1733745061002,-236.39968009,0.00020156,4]
[344726482,1733745061011,-150.0,0.00020166,4]
[344726483,1733745061021,-1090.04,0.00020172,2]
[344726484,1733745061030,-369.52376417,0.00020207,4]
[344726485,1733745061040,-170.34598617,0.00020207,4]
[344726486,1733745061054,-236.39968009,0.00020207,4]
[344726487,1733745061063,-150.0,0.0002024,4]
[344726488,1733745061073,-369.52376417,0.00020257,4]
[344726489,1733745061083,-170.34598617,0.00020257,4]
[344726490,1733745061092,-236.39968009,0.00020257,4]
[344726491,1733745061102,-150.0,0.00020273,2]
[344726492,1733745061112,-369.52376417,0.00020307,4]
[344726493,1733745061122,-170.34598617,0.00020307,4]
[344726494,1733745061131,-236.39968009,0.00020307,4]
[344726495,1733745061141,-150.0,0.00020333,4]
[344726496,1733745061150,-150.0,0.00020333,4]
[344726497,1733745061160,-369.52376417,0.00020358,4]
[344726498,1733745061170,-170.34598617,0.00020358,4]
[344726499,1733745061180,-236.39968009,0.00020358,4]
[344726500,1733745061189,-1056.0,0.00020361,2]
[344726501,1733745061199,-369.52376417,0.00020408,4]
[344726502,1733745061208,-170.34598617,0.00020408,4]
[344726503,1733745061218,-236.39968009,0.00020408,4]
[344726504,1733745061227,-150.0,0.0002041,2]
[344726505,1733745061238,-150.0,0.00020425,4]
[344726506,1733745061247,-150.0,0.00020437,4]
[344726507,1733745061257,-369.52376417,0.00020459,4]
[344726508,1733745061266,-170.34598617,0.00020459,4]
[344726509,1733745061276,-236.39968009,0.00020459,4]
[344726510,1733745061286,-152.0,0.00020496,13]
[344726511,1733745061295,-150.0,0.00020499,4]
[344726512,1733745061309,-2110.0,0.000205,2]
[344726513,1733745061319,-365.749,0.000205,2]
[344726514,1733745061328,-369.52376417,0.00020509,4]
[344726515,1733745061338,-170.34598617,0.00020509,4]
[344726516,1733745061347,-236.39968009,0.00020509,4]
[344726517,1733745061357,-150.0,0.00020518,4]
[344726518,1733745061368,-317.8568641,0.00020533,2]
[344726519,1733745061378,-831.6243078,0.00020533,2]
[344726520,1733745061387,-154.737417,0.00020547,2]
[344726521,1733745061397,-154.737417,0.00020547,2]
[344726522,1733745061408,-256.089104,0.00020547,2]
[344726523,1733745061417,-256.089104,0.00020547,2]
[344726524,1733745061427,-151.0,0.00020547,2]
[344726525,1733745061437,-150.0,0.00020547,2]
[344726526,1733745061447,-2928.04,0.00020547,2]
[344726527,1733745061456,-2928.04,0.00020547,2]
[344726528,1733745061466,-2928.04,0.00020547,2]
[344726529,1733745061476,-2928.04,0.00020547,2]
[344726530,1733745061486,-2928.04,0.00020547,2]
[344726531,1733745061495,-2928.04,0.00020547,2]
[344726532,1733745061504,-2928.04,0.00020547,2]
[344726533,1733745061514,-2928.04,0.00020547,2]
[344726534,1733745061523,-2928.04,0.00020547,2]
[344726535,1733745061533,-2928.04,0.00020547,2]
[344726536,1733745061542,-2928.04,0.00020547,2]
[344726537,1733745061555,-2928.04,0.00020547,2]
[344726538,1733745061564,-2928.04,0.00020547,2]
[344726539,1733745061573,-2928.04,0.00020547,2]
[344726540,1733745061583,-2928.04,0.00020547,2]
[344726541,1733745061592,-2928.04,0.00020547,2]
[344726542,1733745061601,-2928.04,0.00020547,2]
[344726543,1733745061611,-2928.04,0.00020547,2]
[344726544,1733745061620,-2928.04,0.00020547,2]
[344726545,1733745061630,-2928.04,0.00020547,2]
[344726546,1733745061640,-2928.04,0.00020547,2]
[344726547,1733745061649,-2928.04,0.00020547,2]
[344726548,1733745061660,-2928.04,0.00020547,2]
[344726549,1733745061669,-2928.2542145,0.00020547,2]
[344726550,1733745061679,-178.67,0.00020548,2]
[344726551,1733745061688,-151.0,0.0002055,2]
[344726552,1733745061697,-369.52376417,0.0002056,4]
[344726553,1733745061706,-170.34598617,0.0002056,4]
[344726554,1733745061715,-236.39968009,0.0002056,4]
[344726555,1733745061723,-369.52376417,0.0002061,4]
[344726556,1733745061733,-170.34598617,0.0002061,4]
[344726557,1733745061742,-236.39968009,0.0002061,4]
[344726558,1733745061752,-150.0,0.0002061,4]
[344726559,1733745061762,-369.52376417,0.00020661,4]
[344726560,1733745061771,-170.34598617,0.00020661,4]
[344726561,1733745061781,-236.39968009,0.00020661,4]
[344726562,1733745061791,-150.0,0.00020666,4]
[344726563,1733745061803,-150.0,0.00020684,2]
[344726564,1733745061812,-152.0,0.00020689,5]
[344726565,1733745061822,-4618.28875,0.000207,30]
[344726566,1733745061832,-150.0,0.00020703,4]
[344726567,1733745061842,-369.52376417,0.00020711,4]
[344726568,1733745061851,-170.34598617,0.00020711,4]
[344726569,1733745061861,-236.39968009,0.00020711,4]
[344726570,1733745061871,-171.0,0.00020737,30]
[344726571,1733745061881,-150.0,0.00020749,4]
[344726572,1733745061890,-150.0,0.00020749,4]
[344726573,1733745061899,-150.0,0.00020749,4]
[344726574,1733745061910,-369.52376417,0.00020762,4]
[344726575,1733745061919,-170.34598617,0.00020762,4]
[344726576,1733745061930,-236.39968009,0.00020762,4]
[344726577,1733745061939,-150.0,0.00020795,4]
[344726578,1733745061948,-369.52376417,0.00020812,4]
[344726579,1733745061957,-170.34598617,0.00020812,4]
[344726580,1733745061967,-236.39968009,0.00020812,4]
[344726581,1733745061976,-150.0,0.00020821,2]
[344726582,1733745061985,-150.0,0.00020832,4]
[344726583,1733745061995,-369.52376417,0.00020863,4]
[344726584,1733745062004,-170.34598617,0.00020863,4]
[344726585,1733745062013,-236.39968009,0.00020863,4]
[344726586,1733745062023,-150.0,0.00020888,4]
[344726587,1733745062032,-369.52376417,0.00020913,4]
[344726588,1733745062041,-170.34598617,0.00020913,4]
[344726589,1733745062097,-236.39968009,0.00020913,4]
[344726590,1733745062107,-350.5,0.00020923,15]
[344726591,1733745062116,-150.0,0.00020958,2]
[344726592,1733745062125,-369.52376417,0.00020963,4]
[344726593,1733745062134,-170.34598617,0.00020963,4]
[344726594,1733745062143,-236.39968009,0.00020963,4]
[344726595,1733745062152,-152.0,0.00020979,14]
[344726596,1733745062161,-150.0,0.0002098,4]
[344726597,1733745062170,-150.0,0.00020999,4]
[344726598,1733745062180,-3000.01,0.00021,2]
[344726599,1733745062190,-2333.76,0.00021,2]
[344726600,1733745062200,-3000.01,0.00021,2]
[344726601,1733745062209,-2765.45,0.00021,2]
[344726602,1733745062218,-500.0,0.00021,5]
[344726603,1733745062228,-1140.21957815,0.00021,2]
[344726604,1733745062237,-188.14275051,0.00021,2]
[344726605,1733745062247,-4024.96283475,0.00021,7]
[344726606,1733745062256,-500.0,0.00021,2]
[344726607,1733745062266,-2110.0,0.00021,2]
[344726608,1733745062275,-12042.0,0.00021,2]
[344726609,1733745062284,-350.3212878,0.00021,3]
[344726610,1733745062294,-302.27,0.00021,2]
[344726611,1733745062310,-3002.06,0.00021,2]
[344726612,1733745062319,-650.0,0.00021,2]
[344726613,1733745062329,-3000.0,0.00021,2]
[344726614,1733745062339,-548.624,0.00021,7]
[344726615,1733745062348,-369.52376417,0.00021014,4]
[344726616,1733745062357,-170.34598617,0.00021014,4]
[344726617,1733745062366,-236.39968009,0.00021014,4]
[344726618,1733745062375,-150.0,0.00021061,4]
[344726619,1733745062384,-369.52376417,0.00021064,4]
[344726620,1733745062393,-170.34598617,0.00021064,4]
[344726621,1733745062403,-236.39968009,0.00021064,4]
[344726622,1733745062412,-150.0,0.00021073,4]
[344726623,1733745062421,-170.58581477,0.00021095,2]
[344726624,1733745062431,-369.52376417,0.00021115,4]
[344726625,1733745062440,-170.34598617,0.00021115,4]
[344726626,1733745062449,-236.39968009,0.00021115,4]
[344726627,1733745062458,-500.0,0.0002112,30]
[344726628,1733745062468,-245.0413519,0.0002112,30]
[344726629,1733745062477,-369.52376417,0.00021165,4]
[344726630,1733745062487,-170.34598617,0.00021165,4]
[344726631,1733745062496,-236.39968009,0.00021165,4]
[344726632,1733745062505,-150.0,0.00021165,4]
[344726633,1733745062514,-150.0,0.00021165,4]
[344726634,1733745062523,-369.52376417,0.00021216,4]
[344726635,1733745062533,-170.34598617,0.00021216,4]
[344726636,1733745062542,-236.39968009,0.00021216,4]
[344726637,1733745062554,-150.0,0.00021258,4]
[344726638,1733745062563,-369.52376417,0.00021266,4]
[344726639,1733745062572,-170.34598617,0.00021266,4]
[344726640,1733745062581,-236.39968009,0.00021266,4]
[344726641,1733745062591,-5000.0,0.00021274,2]
[344726642,1733745062600,-5000.0,0.00021274,2]
[344726643,1733745062609,-5000.0,0.00021274,2]
[344726644,1733745062619,-3307.74431492,0.000213,10]
[344726645,1733745062628,-369.52376417,0.00021317,4]
[344726646,1733745062637,-170.34598617,0.00021317,4]
[344726647,1733745062646,-236.39968009,0.00021317,4]
[344726648,1733745062656,-150.0,0.00021332,4]
[344726649,1733745062665,-150.0,0.0002135,4]
[344726650,1733745062674,-369.52376417,0.00021367,4]
[344726651,1733745062684,-170.34598617,0.00021367,4]
[344726652,1733745062693,-236.39968009,0.00021367,4]
[344726653,1733745062703,-171.0,0.00021368,30]
[344726654,1733745062712,-1600.0,0.0002137,2]
[344726655,1733745062721,-5010.84,0.0002137,2]
[344726656,1733745062730,-2000.0,0.0002137,2]
[344726657,1733745062739,-150.0,0.00021374,4]
[344726658,1733745062748,-150.0,0.00021374,4]
[344726659,1733745062758,-369.52376417,0.00021418,4]
[344726660,1733745062767,-170.34598617,0.00021418,4]
[344726661,1733745062776,-236.39968009,0.00021418,4]
[344726662,1733745062786,-150.0,0.00021443,4]
[344726663,1733745062795,-152.0,0.00021462,15]
[344726664,1733745062806,-369.52376417,0.00021468,4]
[344726665,1733745062816,-170.34598617,0.00021468,4]
[344726666,1733745062825,-236.39968009,0.00021468,4]
[344726667,1733745062835,-150.0,0.00021498,4]
[344726668,1733745062848,-554.87983549,0.000215,90]
[344726669,1733745062857,-2110.0,0.000215,2]
[344726670,1733745062866,-369.52376417,0.00021519,4]
[344726671,1733745062875,-170.34598617,0.00021519,4]
[344726672,1733745062884,-236.39968009,0.00021519,4]
[344726673,1733745062893,-4484.02312464,0.0002152,2]
[344726674,1733745062903,-150.0,0.00021535,4]
[344726675,1733745062912,-369.52376417,0.00021569,4]
[344726676,1733745062921,-170.34598617,0.00021569,4]
[344726677,1733745062930,-236.39968009,0.00021569,4]
[344726678,1733745062939,-369.52376417,0.0002162,4]
[344726679,1733745062948,-170.34598617,0.0002162,4]
[344726680,1733745062959,-236.39968009,0.0002162,4]
[344726681,1733745062969,-150.0,0.00021628,4]
[344726682,1733745062978,-150.0,0.00021665,4]
[344726683,1733745062987,-369.52376417,0.0002167,4]
[344726684,1733745062997,-170.34598617,0.0002167,4]
[344726685,1733745063006,-236.39968009,0.0002167,4]
[344726686,1733745063015,-150.0,0.00021686,4]
[344726687,1733745063025,-7220.56937896,0.000217,2]
[344726688,1733745063035,-150.0,0.0002172,4]
[344726689,1733745063045,-369.52376417,0.0002172,4]
[344726690,1733745063056,-170.34598617,0.0002172,4]
[344726691,1733745063066,-236.39968009,0.0002172,4]
[344726692,1733745063076,-500.0,0.0002177,2]
[344726693,1733745063086,-700.0,0.0002177,2]
[344726694,1733745063096,-369.52376417,0.00021771,4]
[344726695,1733745063106,-170.34598617,0.00021771,4]
[344726696,1733745063116,-236.39968009,0.00021771,4]
[344726697,1733745063126,-317.8568641,0.00021785,2]
[344726698,1733745063136,-317.8568641,0.00021785,2]
[344726699,1733745063146,-317.8568641,0.00021785,2]
[344726700,1733745063155,-317.8568641,0.00021785,2]
[344726701,1733745063165,-4188.0808711,0.00021785,2]
[344726702,1733745063175,-4799.9886437,0.00021785,2]
[344726703,1733745063185,-5411.8964163,0.00021785,2]
[344726704,1733745063195,-6023.8041889,0.00021785,2]
[344726705,1733745063205,-673.8089132,0.00021785,2]
[344726706,1733745063215,-515.9935186,0.00021785,2]
[344726707,1733745063225,-358.1781241,0.00021785,2]
[344726708,1733745063234,-200.3627295,0.00021785,2]
[344726709,1733745063244,-3682960.56769619,0.000218,30]
[344726710,1733745063254,-154.737417,0.000218,2]
[344726711,1733745063264,-154.737417,0.000218,2]
[344726712,1733745063273,-256.089104,0.000218,2]
[344726713,1733745063282,-256.089104,0.000218,2]
[344726714,1733745063293,-288.573388,0.000218,2]
[344726715,1733745063304,-288.573388,0.000218,2]
[344726716,1733745063313,-151.0,0.000218,2]
[344726717,1733745063323,-151.0,0.000218,2]
[344726718,1733745063333,-219.405489,0.000218,2]
[344726719,1733745063342,-219.405489,0.000218,2]
[344726720,1733745063352,-288.362821,0.000218,2]
[344726721,1733745063363,-288.362821,0.000218,2]
[344726722,1733745063373,-160.931551,0.000218,2]
[344726723,1733745063382,-160.931551,0.000218,2]
[344726724,1733745063391,-151.0,0.000218,2]
[344726725,1733745063400,-485.648918,0.000218,2]
[344726726,1733745063410,-485.648918,0.000218,2]
[344726727,1733745063419,-175.53788,0.000218,2]
[344726728,1733745063429,-2453.246892,0.000218,2]
[344726729,1733745063439,-2453.246892,0.000218,2]
[344726730,1733745063449,-633.9047,0.000218,2]
[344726731,1733745063459,-573.492229,0.000218,2]
[344726732,1733745063468,-573.492229,0.000218,2]
[344726733,1733745063478,-151.0,0.000218,2]
[344726734,1733745063487,-241.387681,0.000218,2]
[344726735,1733745063497,-594.010098,0.000218,2]
[344726736,1733745063507,-594.010098,0.000218,2]
[344726737,1733745063516,-1006.0559,0.000218,2]
[344726738,1733745063526,-150.0,0.00021813,4]
[344726739,1733745063536,-369.52376417,0.00021821,4]
[344726740,1733745063546,-170.34598617,0.00021821,4]
[344726741,1733745063558,-236.39968009,0.00021821,4]
[344726742,1733745063568,-1125.55,0.00021826,30]
[344726743,1733745063578,-150.0,0.00021831,4]
[344726744,1733745063588,-5024.51184,0.0002185,30]
[344726745,1733745063597,-500.0,0.00021863,2]
[344726746,1733745063608,-500.0,0.00021863,2]
[344726747,1733745063618,-500.0,0.00021863,2]
[344726748,1733745063627,-500.0,0.00021863,2]
[344726749,1733745063637,-500.0,0.00021863,2]
[344726750,1733745063647,-500.0,0.00021863,2]
[344726751,1733745063657,-500.0,0.00021863,2]
[344726752,1733745063666,-500.0,0.00021863,2]
[344726753,1733745063676,-500.0,0.00021863,2]
[344726754,1733745063685,-500.0,0.00021863,2]
[344726755,1733745063695,-500.0,0.00021863,2]
[344726756,1733745063705,-500.0,0.00021863,2]
[344726757,1733745063715,-521.0,0.00021863,2]
[344726758,1733745063724,-500.0,0.00021863,2]
[344726759,1733745063734,-500.0,0.00021863,2]
[344726760,1733745063744,-500.0,0.00021863,2]
[344726761,1733745063753,-500.0,0.00021863,2]
[344726762,1733745063763,-500.0,0.00021863,2]
[344726763,1733745063772,-500.0,0.00021863,2]
[344726764,1733745063783,-500.0,0.00021863,2]
[344726765,1733745063792,-500.0,0.00021863,2]
[344726766,1733745063806,-500.0,0.00021863,2]
[344726767,1733745063816,-500.0,0.00021863,2]
[344726768,1733745063826,-500.0,0.00021863,2]
[344726769,1733745063835,-500.0,0.00021863,2]
[344726770,1733745063849,-500.0,0.00021863,2]
[344726771,1733745063858,-500.0,0.00021863,2]
[344726772,1733745063868,-500.0,0.00021863,2]
[344726773,1733745063877,-500.0,0.00021863,2]
[344726774,1733745063888,-500.0,0.00021863,2]
[344726775,1733745063898,-500.0,0.00021863,2]
[344726776,1733745063909,-500.0,0.00021863,2]
[344726777,1733745063920,-500.0,0.00021863,2]
[344726778,1733745063931,-500.0,0.00021863,2]
[344726779,1733745063941,-500.0,0.00021863,2]
[344726780,1733745063951,-500.0,0.00021863,2]
[344726781,1733745063962,-500.0,0.00021863,2]
[344726782,1733745063973,-500.0,0.00021863,2]
[344726783,1733745063983,-500.0,0.00021863,2]
[344726784,1733745063993,-500.0,0.00021863,2]
[344726785,1733745064003,-500.0,0.00021863,2]
[344726786,1733745064016,-500.0,0.00021863,2]
[344726787,1733745064026,-500.0,0.00021863,2]
[344726788,1733745064036,-500.0,0.00021863,2]
[344726789,1733745064046,-500.0,0.00021863,2]
[344726790,1733745064060,-500.0,0.00021863,2]
[344726791,1733745064070,-500.0,0.00021863,2]
[344726792,1733745064079,-500.0,0.00021863,2]
[344726793,1733745064089,-500.0,0.00021863,2]
[344726794,1733745064099,-500.0,0.00021863,2]
[344726795,1733745064110,-369.52376417,0.00021872,4]
[344726796,1733745064120,-170.34598617,0.00021872,4]
[344726797,1733745064130,-236.39968009,0.00021872,4]
[344726798,1733745064140,-200.0,0.000219,2]
[344726799,1733745064150,-150.0,0.00021905,4]
[344726800,1733745064159,-1268.84,0.00021917,2]
[344726801,1733745064169,-1268.84,0.00021917,2]
[344726802,1733745064179,-1268.84,0.00021917,2]
[344726803,1733745064190,-1268.84,0.00021917,2]
[344726804,1733745064201,-1268.84,0.00021917,2]
[344726805,1733745064211,-1268.84,0.00021917,2]
[344726806,1733745064220,-1268.84,0.00021917,2]
[344726807,1733745064230,-1268.84,0.00021917,2]
[344726808,1733745064240,-1268.84,0.00021917,2]
[344726809,1733745064250,-1268.84,0.00021917,2]
[344726810,1733745064259,-1268.84,0.00021917,2]
[344726811,1733745064269,-1268.84,0.00021917,2]
[344726812,1733745064279,-1268.84,0.00021917,2]
[344726813,1733745064289,-1268.84,0.00021917,2]